[Event "4th Baskent University Open 2019"]
[Site "Ankara"]
[Date "2019.06.18"]
[Round "2"]
[White "Nural, Polen"]
[Black "Gocer, Onur Saygin"]
[Result "0-1"]
[ECO "D02"]
[WhiteElo "1319"]
[BlackElo "1595"]
[Annotator "NA"]
[PlyCount "114"]
[EventDate "2019.06.18"]
[EventType "swiss"]
[EventCountry "TUR"]
[SourceTitle "playchess.com"]
[Source "ChessBase"]
[SourceQuality "1"]
[TimeControl "5400+30"]

1. d4 {[%emt 0:00:30]} Nf6 {[%emt 0:00:30]} 2. Nf3 {[%emt 0:00:30]} e6 {[%emt 0:00:00]} 3. Bf4 {[%emt 0:00:00]} d5 {[%emt 0:00:00]} 4. e3 {[%emt 0:01:00]} c5 {[%emt 0:00:30]} 5. c3 {[%emt 0:01:30]} Bd6 {[%emt 0:00:30]} 6. Ne5 {[%emt 0:04:30]} O-O {[%emt 0:00:30]} 7. Nd2 {[%emt 0:02:30]} Qc7 {[%emt 0:00:30]} 8. Bd3 {[%emt 0:02:30]} Nbd7 {[%emt 0:00:30]} 9. Ndf3 {[%emt 0:02:30]} Ne4 {[%emt 0:01:30]} 10. Nxd7 {[%emt 0:02:30]} Bxd7 {[%emt 0:00:30]} 11. Ne5 {[%emt 0:01:30]} cxd4 {[%emt 0:03:30]} 12. Nxd7 {[%emt 0:04:30]} Qxd7 {[%emt 0:00:00]} 13. Bxd6 {[%emt 0:02:30]} Nxd6 {[%emt 0:01:00]} 14. exd4 {[%emt 0:00:30]} Rfc8 {[%emt 0:00:30]} 15. O-O {[%emt 0:01:30]} b5 {[%emt 0:02:30]} 16. Qe2 {[%emt 0:04:30]} Rab8 {[%emt 0:00:30]} 17. Rac1 {[%emt 0:01:30]} Rc6 {[%emt 0:02:30]} 18. Rc2 {[%emt 0:02:30]} Qc7 {[%emt 0:01:30]} 19. Rfc1 {[%emt 0:00:30]} Qa5 {[%emt 0:00:30]} 20. b3 {[%emt 0:05:30]} Rbc8 {[%emt 0:00:30]} 21. c4 {[%emt 0:04:30]} bxc4 {[%emt 0:00:30]} 22. bxc4 dxc4 {[%emt 0:00:30]} 23. Bxc4 {[%emt 0:01:00]} Nf5 {[%emt 0:01:30]} 24. Qe4 {[%emt 0:11:30]} Qb4 {[%emt 0:02:30]} 25. Bf1 {[%emt 0:09:30]} Rxc2 {[%emt 0:02:30]} 26. Rxc2 {[%emt 0:00:00]} Rd8 {[%emt 0:00:00]} 27. Rc4 {[%emt 0:02:00]} Qb6 {[%emt 0:00:00]} 28. Qc6 {[%emt 0:04:30]} Nxd4 {[%emt 0:01:30]} 29. Qxb6 {[%emt 0:02:30]} axb6 {[%emt 0:00:30]} 30. Rb4 {[%emt 0:00:00]} Rd6 {[%emt 0:00:30]} 31. f4 {[%emt 0:01:00]} Kf8 {[%emt 0:00:30]} 32. Kf2 {[%emt 0:01:30]} Ke7 {[%emt 0:00:30]} 33. a4 {[%emt 0:02:30]} Nc2 {[%emt 0:00:30]} 34. Rc4 {[%emt 0:02:30]} Nd4 {[%emt 0:05:30]} 35. g4 {[%emt 0:04:30]} Nb3 {[%emt 0:02:30]} 36. Be2 {[%emt 0:03:59]} Rd4 {[%emt 0:01:30]} 37. Rc7+ {[%emt 0:01:20]} Kf6 {[%emt 0:00:30]} 38. Ke3 {[%emt 0:01:29]} Rxa4 {[%emt 0:01:30]} 39. g5+ {[%emt 0:04:36]} Kg6 {[%emt 0:00:00]} 40. h4 {[%emt 0:01:10]} h5 {[%emt 0:04:00]} 41. Bd3+ {[%emt 0:03:32]} f5 {[%emt 0:00:30]} 42. Rc6 {[%emt 0:03:38]} Nc5 {[%emt 0:00:30]} 43. Bc2 {[%emt 0:00:38]} Rc4 {[%emt 0:00:30]} 44. Bb1 {[%emt 0:00:28]} b5 {[%emt 0:01:30]} 45. Rb6 {[%emt 0:00:30]} b4 {[%emt 0:00:30]} 46. Ba2 {[%emt 0:00:32]} b3 {[%emt 0:00:00]} 47. Bxb3 {[%emt 0:00:32]} Rc3+ {[%emt 0:00:00]} 48. Kd4 {[%emt 0:00:09]} Rxb3 {[%emt 0:00:30]} 49. Kxc5 {[%emt 0:00:30]} Rxb6 {[%emt 0:00:30]} 50. Kxb6 {[%emt 0:00:30]} e5 {[%emt 0:00:00]} 51. fxe5 {[%emt 0:00:00]} Kf7 {[%emt 0:01:00]} 52. Kc5 {[%emt 0:01:13]} Ke6 {[%emt 0:00:30]} 53. Kd4 {[%emt 0:00:30]} g6 {[%emt 0:00:00]} 54. Kd3 {[%emt 0:00:18]} Kxe5 {[%emt 0:00:00]} 55. Ke3 {[%emt 0:00:30]} f4+ {[%emt 0:00:30]} 56. Kf3 {[%emt 0:00:00]} Kf5 {[%emt 0:00:00]} 57. Kf2 {[%emt 0:00:03]} Kg4 {[%emt 0:00:00]} 0-1

[Event "4th Baskent University Open 2019"]
[Site "Ankara"]
[Date "2019.06.18"]
[Round "2"]
[White "Ozkale, Burak"]
[Black "Sahin, Arda"]
[Result "0-1"]
[ECO "E14"]
[WhiteElo "1270"]
[BlackElo "1710"]
[Annotator "NA"]
[PlyCount "114"]
[EventDate "2019.06.18"]
[EventType "swiss"]
[EventCountry "TUR"]
[SourceTitle "playchess.com"]
[Source "ChessBase"]
[SourceQuality "1"]
[TimeControl "5400+30"]

1. d4 {[%emt 0:00:30]} d5 {[%emt 0:00:30]} 2. c4 {[%emt 0:00:30]} e6 {[%emt 0:00:30]} 3. Nf3 {[%emt 0:00:30]} a6 {[%emt 0:00:00]} 4. cxd5 {[%emt 0:01:30]} exd5 {[%emt 0:00:00]} 5. e3 {[%emt 0:00:30]} Nf6 {[%emt 0:00:00]} 6. Bd3 {[%emt 0:02:30]} Bd6 {[%emt 0:01:00]} 7. Nc3 {[%emt 0:02:30]} O-O {[%emt 0:00:30]} 8. O-O {[%emt 0:03:30]} b6 {[%emt 0:01:30]} 9. Qc2 {[%emt 0:12:30]} Bb7 {[%emt 0:00:30]} 10. Nh4 {[%emt 0:10:30]} Re8 {[%emt 0:11:30]} 11. Nf5 {[%emt 0:05:30]} Bf8 {[%emt 0:00:30]} 12. b3 {[%emt 0:02:30]} g6 {[%emt 0:07:30]} 13. Ng3 {[%emt 0:01:30]} Nbd7 {[%emt 0:13:30]} 14. Bb2 {[%emt 0:04:30]} Bg7 {[%emt 0:03:30]} 15. Rac1 {[%emt 0:02:30]} c5 {[%emt 0:02:30]} 16. Nce2 {[%emt 0:11:30]} Rc8 {[%emt 0:01:30]} 17. Qb1 {[%emt 0:00:30]} Ne4 {[%emt 0:18:30]} 18. Bxe4 {[%emt 0:05:30]} dxe4 {[%emt 0:00:00]} 19. Rfd1 {[%emt 0:01:30]} Qg5 {[%emt 0:03:00]} 20. Nf4 {[%emt 0:03:30]} cxd4 {[%emt 0:21:16]} 21. Bxd4 {[%emt 0:02:30]} Bxd4 {[%emt 0:10:32]} 22. Rxd4 {[%emt 0:00:30]} Nf6 {[%emt 0:01:14]} 23. Rxc8 {[%emt 0:11:53]} Rxc8 {[%emt 0:00:31]} 24. h3 {[%emt 0:00:15]} Kg7 {[%emt 0:00:47]} 25. b4 {[%emt 0:07:01]} h5 {[%emt 0:01:02]} 26. Rd6 {[%emt 0:01:19]} Rc6 {[%emt 0:00:34]} 27. Rxc6 {[%emt 0:02:12]} Bxc6 {[%emt 0:00:02]} 28. Qc2 {[%emt 0:00:23]} Qb5 {[%emt 0:00:59]} 29. Nge2 {[%emt 0:01:28]} Bd5 {[%emt 0:00:29]} 30. Qb2 {[%emt 0:01:11]} Bc4 {[%emt 0:00:32]} 31. Nc3 {[%emt 0:00:55]} Qe5 {[%emt 0:00:24]} 32. Qd2 {[%emt 0:00:47]} h4 {[%emt 0:00:35]} 33. Qd4 {[%emt 0:01:11]} Qxd4 {[%emt 0:00:57]} 34. exd4 {[%emt 0:00:02]} g5 {[%emt 0:00:00]} 35. Nfe2 {[%emt 0:00:24]} Bxe2 {[%emt 0:00:19]} 36. Nxe2 {[%emt 0:00:30]} Nd5 {[%emt 0:00:07]} 37. a3 {[%emt 0:00:00]} Kf6 {[%emt 0:01:28]} 38. Kf1 {[%emt 0:00:06]} Ke6 {[%emt 0:00:05]} 39. Ke1 {[%emt 0:00:18]} b5 {[%emt 0:00:35]} 40. Kd2 {[%emt 0:01:13]} f5 {[%emt 0:00:21]} 41. g3 {[%emt 0:00:44]} g4 {[%emt 0:00:40]} 42. Ng1 {[%emt 0:01:13]} e3+ {[%emt 0:00:29]} 43. fxe3 {[%emt 0:00:49]} hxg3 {[%emt 0:00:13]} 44. Kd3 {[%emt 0:00:32]} Nf6 {[%emt 0:00:42]} 45. Ke2 {[%emt 0:00:29]} Kd5 {[%emt 0:00:25]} 46. Kd3 {[%emt 0:00:31]} Ne4 {[%emt 0:00:23]} 47. h4 {[%emt 0:00:13]} Nf2+ {[%emt 0:00:19]} 48. Ke2 {[%emt 0:00:33]} Nh3 {[%emt 0:01:05]} 49. Nxh3 {[%emt 0:00:34]} gxh3 {[%emt 0:00:34]} 50. Kf3 {[%emt 0:00:02]} h2 {[%emt 0:00:41]} 51. Kg2 {[%emt 0:00:01]} Ke4 {[%emt 0:00:00]} 52. d5 {[%emt 0:01:25]} Kxe3 {[%emt 0:00:28]} 53. d6 {[%emt 0:00:00]} h1=Q+ {[%emt 0:00:17]} 54. Kxh1 {[%emt 0:00:28]} Kf2 {[%emt 0:00:00]} 55. d7 {[%emt 0:00:00]} g2+ {[%emt 0:00:08]} 56. Kh2 {[%emt 0:00:21]} g1=Q+ {[%emt 0:00:30]} 57. Kh3 {[%emt 0:00:30]} Qg3# {[%emt 0:00:00]} 0-1

[Event "4th Baskent University Open 2019"]
[Site "Ankara"]
[Date "2019.06.18"]
[Round "3"]
[White "Bernadskiy, Vitaliy"]
[Black "Saraci, Nderim"]
[Result "1/2-1/2"]
[ECO "D03"]
[WhiteElo "2578"]
[BlackElo "2377"]
[Annotator "ChessBase"]
[PlyCount "63"]
[EventDate "2019.06.18"]
[EventType "swiss"]
[EventCountry "TUR"]
[SourceTitle "playchess.com"]
[Source "ChessBase"]
[SourceQuality "1"]
[TimeControl "5400+30"]

1. d4 {[%emt 0:00:30]} Nf6 {[%emt 0:00:30]} 2. Bg5 {[%emt 0:00:00]} d5 {[%emt 0:01:30]} 3. Nd2 {[%emt 0:00:00]} e6 {[%emt 0:02:30]} 4. e3 {[%emt 0:00:00]} c5 {[%emt 0:00:00]} 5. c3 {[%emt 0:00:00]} Nc6 {[%emt 0:00:00]} 6. Ngf3 {[%emt 0:00:30]} h6 {[%emt 0:05:30]} 7. Bh4 {[%emt 0:00:30]} Bd6 {[%emt 0:00:00]} 8. Bd3 {[%emt 0:00:30]} O-O {[%emt 0:01:00]} 9. Qe2 {[%emt 0:01:30]} e5 {[%emt 0:03:30]} 10. dxc5 {[%emt 0:00:30]} Bxc5 {[%emt 0:00:30]} 11. e4 {[%emt 0:00:00]} d4 {[%emt 0:10:30]} 12. O-O {[%emt 0:10:00]} Bg4 {[%emt 0:02:30]} 13. Nb3 {[%emt 0:04:30]} Be7 {[%emt 0:01:30]} 14. h3 {[%emt 0:02:30]} Bxf3 {[%emt 0:07:30]} 15. Qxf3 {[%emt 0:00:30]} dxc3 {[%emt 0:01:30]} 16. bxc3 {[%emt 0:00:00]} Nh5 {[%emt 0:08:30]} 17. Bb5 {[%emt 0:17:00]} Bxh4 {[%emt 0:00:30]} 18. Bxc6 {[%emt 0:00:30]} bxc6 {[%emt 0:00:30]} 19. Qxh5 {[%emt 0:00:30]} Bg5 {[%emt 0:00:30]} 20. Rfd1 {[%emt 0:04:30]} Qe7 {[%emt 0:00:30]} 21. Qe2 {[%emt 0:01:30]} Qa3 {[%emt 0:07:30]} 22. Rd7 {[%emt 0:04:30]} Bd8 {[%emt 0:06:30]} 23. Qc4 {[%emt 0:03:30]} Bb6 {[%emt 0:00:30]} 24. Qb4 {[%emt 0:12:30]} Qxb4 {[%emt 0:07:30]} 25. cxb4 {[%emt 0:00:00]} a5 {[%emt 0:00:30]} 26. Rb7 {[%emt 0:06:00]} Bd4 {[%emt 0:02:30]} 27. Rc1 {[%emt 0:09:30]} axb4 {[%emt 0:00:30]} 28. Nxd4 {[%emt 0:00:30]} exd4 {[%emt 0:00:30]} 29. Rxb4 {[%emt 0:00:30]} Rxa2 {[%emt 0:02:30]} 30. Rxd4 {[%emt 0:01:30]} Rb8 {[%emt 0:00:30]} 31. e5 {[%emt 0:01:46]} Re2 {[%emt 0:01:30]} 32. Rf4 {[%emt 0:01:41]} 1/2-1/2

[Event "4th Baskent University Open 2019"]
[Site "Ankara"]
[Date "2019.06.18"]
[Round "3"]
[White "Iskandarov, Misratdin"]
[Black "Arat, Ufuk Sezen"]
[Result "1/2-1/2"]
[ECO "B11"]
[WhiteElo "2502"]
[BlackElo "2368"]
[Annotator "ChessBase"]
[PlyCount "146"]
[EventDate "2019.06.18"]
[EventType "swiss"]
[EventCountry "TUR"]
[SourceTitle "playchess.com"]
[Source "ChessBase"]
[SourceQuality "1"]
[TimeControl "5400+30"]

1. e4 {[%emt 0:02:30]} c6 {[%emt 0:01:30]} 2. Nc3 {[%emt 0:00:00]} d5 {[%emt 0:01:30]} 3. Nf3 {[%emt 0:00:00]} Nf6 {[%emt 0:03:30]} 4. e5 {[%emt 0:00:30]} Ne4 {[%emt 0:00:30]} 5. Ne2 {[%emt 0:00:30]} Qb6 {[%emt 0:00:30]} 6. d4 {[%emt 0:00:00]} e6 {[%emt 0:00:30]} 7. Nfg1 {[%emt 0:00:00]} f6 {[%emt 0:00:30]} 8. f3 {[%emt 0:00:30]} Ng5 {[%emt 0:00:00]} 9. exf6 {[%emt 0:00:30]} gxf6 {[%emt 0:00:00]} 10. f4 {[%emt 0:00:00]} Nf7 {[%emt 0:04:30]} 11. Nf3 {[%emt 0:00:00]} c5 {[%emt 0:01:30]} 12. f5 {[%emt 0:10:30]} Nc6 {[%emt 0:10:30]} 13. Nf4 {[%emt 0:00:30]} Nxd4 {[%emt 0:10:30]} 14. Nxd4 {[%emt 0:00:30]} cxd4 {[%emt 0:00:00]} 15. fxe6 {[%emt 0:00:30]} Bxe6 {[%emt 0:03:00]} 16. Bd3 {[%emt 0:00:00]} O-O-O {[%emt 0:14:30]} 17. O-O {[%emt 0:00:00]} Kb8 {[%emt 0:00:00]} 18. a4 {[%emt 0:04:30]} Ne5 {[%emt 0:09:00]} 19. a5 {[%emt 0:02:30]} Qc6 {[%emt 0:04:30]} 20. Nxe6 {[%emt 0:10:30]} Qxe6 {[%emt 0:00:30]} 21. Bf5 {[%emt 0:00:00]} Qc6 {[%emt 0:01:30]} 22. Kh1 {[%emt 0:00:00]} Bc5 {[%emt 0:02:30]} 23. a6 {[%emt 0:00:30]} bxa6 {[%emt 0:04:30]} 24. b3 {[%emt 0:04:30]} h5 {[%emt 0:10:45]} 25. Bf4 {[%emt 0:01:30]} Kb7 {[%emt 0:00:38]} 26. Qd2 {[%emt 0:24:30]} Bb6 {[%emt 0:02:11]} 27. Qe2 {[%emt 0:11:30]} Qb5 {[%emt 0:00:47]} 28. Qe1 {[%emt 0:00:00]} Rhe8 {[%emt 0:02:19]} 29. Qh4 {[%emt 0:00:00]} Ng4 {[%emt 0:05:15]} 30. Bd3 {[%emt 0:02:30]} Qd7 {[%emt 0:01:11]} 31. Bg3 {[%emt 0:05:30]} a5 {[%emt 0:00:52]} 32. h3 {[%emt 0:01:30]} Ne5 {[%emt 0:01:02]} 33. Rxf6 {[%emt 0:00:34]} Nxd3 {[%emt 0:01:03]} 34. cxd3 {[%emt 0:00:26]} Qb5 {[%emt 0:00:02]} 35. Rf7+ {[%emt 0:00:30]} Ka6 {[%emt 0:01:19]} 36. Be1 {[%emt 0:04:18]} Qxb3 {[%emt 0:02:14]} 37. Qf6 {[%emt 0:03:52]} a4 {[%emt 0:01:31]} 38. Qc6 {[%emt 0:00:30]} a3 {[%emt 0:00:24]} 39. Rb1 {[%emt 0:01:02]} Rxe1+ {[%emt 0:01:17]} 40. Rxe1 {[%emt 0:00:05]} Ka5 {[%emt 0:00:00]} 41. Ra1 {[%emt 0:03:12]} Qc3 {[%emt 0:00:33]} 42. Rc1 {[%emt 0:06:29]} Qxc6 {[%emt 0:00:30]} 43. Rxc6 {[%emt 0:00:00]} Re8 {[%emt 0:00:00]} 44. Rf1 {[%emt 0:00:02]} Re2 {[%emt 0:00:12]} 45. g4 {[%emt 0:00:15]} Re3 {[%emt 0:01:14]} 46. g5 {[%emt 0:03:24]} Rxh3+ {[%emt 0:01:13]} 47. Kg2 {[%emt 0:00:30]} Rh4 {[%emt 0:00:00]} 48. Rf3 {[%emt 0:01:52]} a2 {[%emt 0:00:33]} 49. Rc1 {[%emt 0:00:11]} Kb4 {[%emt 0:00:25]} 50. g6 {[%emt 0:00:29]} Bc7 {[%emt 0:00:41]} 51. Rf7 {[%emt 0:01:40]} Rg4+ {[%emt 0:00:06]} 52. Kf3 {[%emt 0:00:00]} Bb6 {[%emt 0:00:20]} 53. g7 {[%emt 0:00:34]} Kb3 {[%emt 0:00:09]} 54. Rh1 {[%emt 0:00:00]} Kb2 {[%emt 0:01:11]} 55. Re7 {[%emt 0:00:07]} Bc5 {[%emt 0:01:04]} 56. Re2+ {[%emt 0:00:35]} Kb3 {[%emt 0:00:02]} 57. Rg2 {[%emt 0:00:00]} Rxg7 {[%emt 0:00:36]} 58. Rxg7 {[%emt 0:00:00]} a5 {[%emt 0:00:07]} 59. Rgg1 {[%emt 0:01:58]} Bb4 {[%emt 0:00:36]} 60. Rxh5 {[%emt 0:00:37]} Bc3 {[%emt 0:00:20]} 61. Rxd5 {[%emt 0:00:37]} a4 {[%emt 0:00:21]} 62. Rb5+ {[%emt 0:00:42]} Ka3 {[%emt 0:00:04]} 63. Ke4 {[%emt 0:00:27]} a1=Q {[%emt 0:00:43]} 64. Rxa1+ {[%emt 0:00:30]} Bxa1 {[%emt 0:00:00]} 65. Kd5 {[%emt 0:00:00]} Ka2 {[%emt 0:00:14]} 66. Kc4 {[%emt 0:00:15]} a3 {[%emt 0:00:00]} 67. Rg5 {[%emt 0:00:15]} Bc3 {[%emt 0:00:28]} 68. Rg2+ {[%emt 0:00:13]} Bb2 {[%emt 0:00:12]} 69. Rc2 {[%emt 0:01:12]} Kb1 {[%emt 0:00:47]} 70. Kb3 {[%emt 0:00:06]} Bc1 {[%emt 0:00:23]} 71. Rg2 {[%emt 0:01:16]} Bb2 {[%emt 0:00:19]} 72. Rg1+ {[%emt 0:00:59]} Bc1 {[%emt 0:00:05]} 73. Rg2 {[%emt 0:00:24]} Bb2 {[%emt 0:00:05]} 1/2-1/2

[Event "4th Baskent University Open 2019"]
[Site "Ankara"]
[Date "2019.06.18"]
[Round "3"]
[White "Nagy, Gabor"]
[Black "Guseynov, Alihan"]
[Result "1-0"]
[ECO "A36"]
[WhiteElo "2471"]
[BlackElo "2274"]
[Annotator "ChessBase"]
[PlyCount "57"]
[EventDate "2019.06.18"]
[EventType "swiss"]
[EventCountry "TUR"]
[SourceTitle "playchess.com"]
[Source "ChessBase"]
[SourceQuality "1"]
[TimeControl "5400+30"]

1. c4 {[%emt 0:00:30]} Nf6 {[%emt 0:02:30]} 2. Nc3 {[%emt 0:00:00]} g6 {[%emt 0:00:30]} 3. e4 {[%emt 0:01:00]} d6 {[%emt 0:00:30]} 4. g3 {[%emt 0:00:30]} Bg7 {[%emt 0:00:30]} 5. Bg2 {[%emt 0:00:00]} c5 {[%emt 0:01:30]} 6. Nge2 {[%emt 0:00:00]} Nc6 {[%emt 0:00:30]} 7. d3 {[%emt 0:00:30]} O-O {[%emt 0:02:30]} 8. O-O {[%emt 0:00:30]} Ne8 {[%emt 0:01:30]} 9. Be3 {[%emt 0:00:30]} Nd4 {[%emt 0:01:30]} 10. Rb1 {[%emt 0:00:30]} Nc7 {[%emt 0:10:30]} 11. b4 {[%emt 0:00:30]} Rb8 {[%emt 0:01:30]} 12. f4 {[%emt 0:05:30]} b6 {[%emt 0:09:30]} 13. h3 {[%emt 0:02:30]} Bb7 {[%emt 0:09:30]} 14. Kh2 {[%emt 0:01:30]} f5 {[%emt 0:01:30]} 15. bxc5 {[%emt 0:02:30]} bxc5 {[%emt 0:02:30]} 16. Bg1 {[%emt 0:13:30]} Bc6 {[%emt 0:05:30]} 17. Nxd4 {[%emt 0:03:30]} cxd4 {[%emt 0:00:30]} 18. Rxb8 {[%emt 0:00:30]} Qxb8 {[%emt 0:00:30]} 19. Nd5 {[%emt 0:00:30]} Bxd5 {[%emt 0:11:30]} 20. cxd5 {[%emt 0:00:30]} Nb5 {[%emt 0:05:30]} 21. exf5 {[%emt 0:01:30]} Rxf5 {[%emt 0:00:30]} 22. Qb3 {[%emt 0:00:30]} Qb6 {[%emt 0:00:30]} 23. Rc1 {[%emt 0:00:30]} Qa5 {[%emt 0:02:30]} 24. Rc4 {[%emt 0:00:30]} Nc3 {[%emt 0:01:30]} 25. Bxd4 {[%emt 0:06:30]} Bxd4 {[%emt 0:11:26]} 26. Rxd4 {[%emt 0:00:00]} Ne2 {[%emt 0:02:03]} 27. Qb4 {[%emt 0:00:00]} Qxa2 {[%emt 0:00:59]} 28. Re4 {[%emt 0:00:30]} Qc2 {[%emt 0:00:26]} 29. Qe1 {[%emt 0:00:30]} 1-0

[Event "4th Baskent University Open 2019"]
[Site "Ankara"]
[Date "2019.06.18"]
[Round "3"]
[White "Mammadov, Zaur"]
[Black "Ozenir, Ekin Baris"]
[Result "1/2-1/2"]
[ECO "B11"]
[WhiteElo "2428"]
[BlackElo "2250"]
[Annotator "NA"]
[PlyCount "131"]
[EventDate "2019.06.18"]
[EventType "swiss"]
[EventCountry "TUR"]
[SourceTitle "playchess.com"]
[Source "ChessBase"]
[SourceQuality "1"]
[TimeControl "5400+30"]

1. e4 {[%emt 0:02:30]} c6 {[%emt 0:00:30]} 2. Nc3 {[%emt 0:00:30]} d5 {[%emt 0:00:30]} 3. Nf3 {[%emt 0:00:00]} Bg4 {[%emt 0:01:30]} 4. h3 {[%emt 0:00:00]} Bxf3 {[%emt 0:00:30]} 5. Qxf3 {[%emt 0:00:00]} e6 {[%emt 0:00:30]} 6. d3 {[%emt 0:00:00]} Nd7 {[%emt 0:02:30]} 7. Bd2 {[%emt 0:00:30]} Ngf6 {[%emt 0:04:30]} 8. g4 {[%emt 0:00:30]} h6 {[%emt 0:06:30]} 9. O-O-O {[%emt 0:00:30]} Qb6 {[%emt 0:02:30]} 10. Qg3 {[%emt 0:05:30]} O-O-O {[%emt 0:07:30]} 11. e5 {[%emt 0:01:30]} d4 {[%emt 0:10:30]} 12. exf6 {[%emt 0:04:30]} dxc3 {[%emt 0:00:30]} 13. Bxc3 {[%emt 0:00:30]} Nxf6 {[%emt 0:00:30]} 14. Bg2 {[%emt 0:00:30]} Nd5 {[%emt 0:04:30]} 15. Bd2 {[%emt 0:02:30]} Bd6 {[%emt 0:08:30]} 16. Qf3 {[%emt 0:00:30]} Qc7 {[%emt 0:01:30]} 17. Kb1 {[%emt 0:00:30]} Rhf8 {[%emt 0:06:30]} 18. h4 {[%emt 0:01:30]} Nf4 {[%emt 0:14:30]} 19. Bf1 {[%emt 0:00:30]} g5 {[%emt 0:00:30]} 20. Re1 {[%emt 0:03:30]} e5 {[%emt 0:05:30]} 21. Qe4 {[%emt 0:02:30]} f6 {[%emt 0:07:14]} 22. Be3 {[%emt 0:09:30]} Qa5 {[%emt 0:05:31]} 23. c3 {[%emt 0:01:30]} Kb8 {[%emt 0:01:42]} 24. hxg5 {[%emt 0:07:30]} hxg5 {[%emt 0:00:11]} 25. Rh7 {[%emt 0:00:30]} Rh8 {[%emt 0:03:09]} 26. Rxh8 {[%emt 0:01:30]} Rxh8 {[%emt 0:00:08]} 27. Qf5 {[%emt 0:00:00]} Qd8 {[%emt 0:04:08]} 28. Qe4 {[%emt 0:02:00]} Qd7 {[%emt 0:01:15]} 29. f3 {[%emt 0:05:30]} Rh1 {[%emt 0:00:38]} 30. Qc4 {[%emt 0:07:30]} b6 {[%emt 0:00:32]} 31. Rc1 {[%emt 0:03:30]} Nd5 {[%emt 0:00:28]} 32. Bf2 {[%emt 0:00:30]} Kb7 {[%emt 0:00:32]} 33. a4 {[%emt 0:00:00]} Nc7 {[%emt 0:00:31]} 34. a5 {[%emt 0:03:00]} b5 {[%emt 0:00:28]} 35. Qe4 {[%emt 0:00:30]} Ne6 {[%emt 0:00:31]} 36. a6+ {[%emt 0:01:30]} Kxa6 {[%emt 0:00:29]} 37. c4 {[%emt 0:01:30]} bxc4 {[%emt 0:00:31]} 38. d4 {[%emt 0:01:30]} Kb7 {[%emt 0:00:30]} 39. d5 {[%emt 0:00:00]} Nc7 {[%emt 0:00:30]} 40. Qxc4 {[%emt 0:02:00]} Nxd5 {[%emt 0:00:31]} 41. Qa4 {[%emt 0:03:30]} Kb8 {[%emt 0:00:30]} 42. Qb3+ {[%emt 0:07:30]} Ka8 {[%emt 0:00:28]} 43. Ka1 {[%emt 0:00:30]} Bc7 {[%emt 0:00:31]} 44. Qa3 {[%emt 0:12:14]} Bb6 {[%emt 0:00:27]} 45. Bxb6 {[%emt 0:03:12]} Nxb6 {[%emt 0:00:03]} 46. Qc5 {[%emt 0:00:26]} Rh8 {[%emt 0:01:01]} 47. Be2 {[%emt 0:01:08]} Rc8 {[%emt 0:00:29]} 48. Rd1 {[%emt 0:00:57]} Nd5 {[%emt 0:00:29]} 49. Bc4 {[%emt 0:00:42]} Rd8 {[%emt 0:00:30]} 50. Rd3 {[%emt 0:00:20]} Qb7 {[%emt 0:00:30]} 51. Rb3 {[%emt 0:01:12]} Nb6 {[%emt 0:00:14]} 52. Bd3 {[%emt 0:00:22]} Kb8 {[%emt 0:00:44]} 53. Ra3 {[%emt 0:00:30]} Qc7 {[%emt 0:00:34]} 54. Be4 {[%emt 0:00:46]} Rd6 {[%emt 0:00:29]} 55. Rc3 {[%emt 0:00:30]} Qe7 {[%emt 0:00:30]} 56. Rc1 {[%emt 0:00:54]} Qc7 {[%emt 0:00:30]} 57. Bxc6 {[%emt 0:01:31]} Nc8 {[%emt 0:00:29]} 58. Rc4 {[%emt 0:00:49]} Nb6 {[%emt 0:01:02]} 59. Rc3 {[%emt 0:00:01]} Rd1+ {[%emt 0:00:29]} 60. Ka2 {[%emt 0:00:05]} Qd6 {[%emt 0:00:00]} 61. Qb5 {[%emt 0:01:03]} Qe6+ {[%emt 0:00:34]} 62. Rb3 {[%emt 0:00:15]} Rd4 {[%emt 0:00:26]} 63. Be4 {[%emt 0:00:17]} Qd7 {[%emt 0:00:30]} 64. Bc6 {[%emt 0:02:15]} Qe6 {[%emt 0:00:04]} 65. Be4 {[%emt 0:01:54]} Qd7 {[%emt 0:00:06]} 66. Bc6 {[%emt 0:00:01]} 1/2-1/2

[Event "4th Baskent University Open 2019"]
[Site "Ankara"]
[Date "2019.06.18"]
[Round "3"]
[White "Nikcevic, Nebojsa"]
[Black "Gulbeyaz, Emir"]
[Result "1/2-1/2"]
[ECO "D70"]
[WhiteElo "2420"]
[BlackElo "2157"]
[Annotator "NA"]
[PlyCount "48"]
[EventDate "2019.06.18"]
[EventType "swiss"]
[EventCountry "TUR"]
[SourceTitle "playchess.com"]
[Source "ChessBase"]
[SourceQuality "1"]
[TimeControl "5400+30"]

1. c4 {[%emt 0:06:30]} Nf6 {[%emt 0:01:30]} 2. Nc3 {[%emt 0:01:30]} d5 {[%emt 0:00:30]} 3. cxd5 {[%emt 0:01:30]} Nxd5 {[%emt 0:00:30]} 4. Nf3 {[%emt 0:00:30]} g6 {[%emt 0:00:00]} 5. e4 {[%emt 0:01:30]} Nb6 {[%emt 0:03:00]} 6. d4 {[%emt 0:03:30]} Bg7 {[%emt 0:00:30]} 7. h3 {[%emt 0:00:00]} O-O {[%emt 0:01:30]} 8. Be3 {[%emt 0:00:00]} Nc6 {[%emt 0:02:30]} 9. Qd2 {[%emt 0:03:30]} f5 {[%emt 0:02:30]} 10. e5 {[%emt 0:04:30]} Nb4 {[%emt 0:03:30]} 11. a3 {[%emt 0:14:30]} N4d5 {[%emt 0:03:30]} 12. Nxd5 {[%emt 0:00:00]} Nxd5 {[%emt 0:01:30]} 13. Bc4 {[%emt 0:00:00]} Kh8 {[%emt 0:05:30]} 14. Bg5 {[%emt 0:03:30]} f4 {[%emt 0:07:30]} 15. Bxd5 {[%emt 0:02:30]} Qxd5 {[%emt 0:00:30]} 16. Bxe7 {[%emt 0:01:30]} Re8 {[%emt 0:00:30]} 17. Bb4 {[%emt 0:03:30]} b6 {[%emt 0:12:30]} 18. O-O {[%emt 0:06:30]} a5 {[%emt 0:00:30]} 19. Bc3 {[%emt 0:00:30]} Bxh3 {[%emt 0:00:30]} 20. Ne1 {[%emt 0:02:30]} Bd7 {[%emt 0:01:30]} 21. Qxf4 {[%emt 0:07:30]} Bb5 {[%emt 0:01:30]} 22. Nc2 {[%emt 0:00:00]} Bxf1 {[%emt 0:00:30]} 23. Ne3 {[%emt 0:01:00]} Qb3 {[%emt 0:00:30]} 24. Rxf1 {[%emt 0:00:30]} c6 {[%emt 0:15:30]} 1/2-1/2